{"text_format":"1","workbook":"xlsx","n_sheets":1,"sheets":["liga_3"],"not_rendered":{"charts":0,"images":0,"macros":0,"external_links":0,"defined_names":0,"comments":0,"pivot_tables":0},"unopened":[],"bounds":{"document_bytes":16777216,"sheet_cells":100000,"rows_first":2000,"rows_last":500,"rows_between":2000,"halvings":0,"cell_chars":16384,"cell_head_chars":4096},"cells_cut":0,"cells_raw":0,"read":"whole","date_system":"1900"}

{"sheet":"liga_3","index":0,"n_rows":121,"n_cols":7,"rows_kept":121,"cut":false,"hidden":false,"merged":[[93,1,93,2],[100,4,100,6],[109,1,109,2],[44,1,44,2],[51,4,51,6],[60,1,60,2],[67,4,67,6],[76,1,76,2],[84,4,84,6],[35,4,35,6],[0,0,0,5],[2,4,2,6],[3,1,3,2],[19,4,19,6],[28,1,28,2]]}
["TERMINARZ II rundy - 3 liga"]
[]
["lp","Zespół - gospodarz","Zespół - przyjezdny","Sędzia meczu","Wynik"]
[null,"06.03.2021 / sobota / 10:00   kolejka 15"]
[3079,"II KS ATS Stargard","II Visonex LUKS TOP Wierzbięcin","zapewnia gospodarz",2,":",8]
[{"$f":"A5+1","v":3080},"I KTS Koszalinianin Koszalin","MSZS Świdwin","zapewnia gospodarz",7,":",3]
[3081,"II KTS Koszalinianin Koszalin","UKS TEAM TENIS 2005 Białogard","zapewnia gospodarz",8,":",2]
[3082,"Trzynastka Szczecin","UKS-T VICTORIA Chojna","zapewnia gospodarz",6,":",4]
[3083," LUKS Gryfice","KKTS Kołobrzeg","zapewnia gospodarz",6,":",4]
[3084,"LUKS Fala Trzebiatów","UKS Czarni Pieszcz","zapewnia gospodarz",7,":",3]
[null,"","","",null,""]
[null,"14:30   kolejka 16",null,null,null,""]
[{"$f":"A10+1","v":3085},"I KTS Koszalinianin Koszalin","UKS TEAM TENIS 2005 Białogard","zapewnia gospodarz",6,":",4]
[{"$f":"A13+1","v":3086},"II KTS Koszalinianin Koszalin","MSZS Świdwin","zapewnia gospodarz",8,":",2]
[{"$f":"A14+1","v":3087}," II UKS Champion Police","UKS-T VICTORIA Chojna","zapewnia gospodarz",6,":",4]
[{"$f":"A15+1","v":3088}," LUKS Gryfice","UKS Czarni Pieszcz","zapewnia gospodarz",9,":",1]
[{"$f":"A16+1","v":3089},"LUKS Fala Trzebiatów","KKTS Kołobrzeg","zapewnia gospodarz",4,":",6]
[null,"","","",null,""]
[]
["lp","Zespół - gospodarz","Zespół - przyjezdny","Sędzia meczu","Wynik"]
[null,"13.03.2021 / sobota / 10:00   kolejka 17"]
[{"$f":"A17+1","v":3090},"LUKS Fala Trzebiatów"," LUKS Gryfice","zapewnia gospodarz",6,":",4]
[{"$f":"A22+1","v":3091},"UKS Czarni Pieszcz","Trzynastka Szczecin","zapewnia gospodarz",1,":",9]
[3092,"KKTS Kołobrzeg"," II UKS Champion Police","zapewnia gospodarz",7,":",3]
[3093,"UKS-T VICTORIA Chojna","II KTS Koszalinianin Koszalin","zapewnia gospodarz",3,":",7]
[3094,"UKS TEAM TENIS 2005 Białogard","II KS ATS Stargard","zapewnia gospodarz",7,":",3]
[3095,"MSZS Świdwin","II Visonex LUKS TOP Wierzbięcin","zapewnia gospodarz",1,":",9]
[null,"","","",null,""]
[null,"14:30   kolejka 18",null,null,null,""]
[{"$f":"A27+1","v":3096},"UKS Czarni Pieszcz"," II UKS Champion Police","zapewnia gospodarz",1,":",9]
[{"$f":"A30+1","v":3097},"KKTS Kołobrzeg","Trzynastka Szczecin","zapewnia gospodarz",2,":",8]
[{"$f":"A31+1","v":3098},"UKS-T VICTORIA Chojna","I KTS Koszalinianin Koszalin","zapewnia gospodarz",3,":",7]
[{"$f":"A32+1","v":3099},"UKS TEAM TENIS 2005 Białogard","II Visonex LUKS TOP Wierzbięcin","zapewnia gospodarz",0,":",10]
[{"$f":"A33+1","v":3100},"MSZS Świdwin","II KS ATS Stargard","zapewnia gospodarz",6,":",4]
[null,"","",""]
["lp","Zespół - gospodarz","Zespół - przyjezdny","Sędzia meczu","Wynik"]
[null,"29.05.2021 / sobota / 10:00   kolejka 19",null,null,null,{"$f":"IF(E37=\"\",\"\",\":\")","v":""}]
[{"$f":"A34+1","v":3101},"MSZS Świdwin","UKS TEAM TENIS 2005 Białogard","zapewnia gospodarz",null,""]
[{"$f":"A38+1","v":3102},"II KS ATS Stargard","UKS-T VICTORIA Chojna","zapewnia gospodarz",null,""]
[3103,"I KTS Koszalinianin Koszalin","KKTS Kołobrzeg","zapewnia gospodarz",null,""]
[3104,"II KTS Koszalinianin Koszalin","UKS Czarni Pieszcz","zapewnia gospodarz",null,""]
[3105," II UKS Champion Police","LUKS Fala Trzebiatów","zapewnia gospodarz",null,""]
[3106,"Trzynastka Szczecin"," LUKS Gryfice","zapewnia gospodarz",null,""]
[null,"","","",null,""]
[null,"14:30   kolejka 20",null,null,null,{"$f":"IF(E45=\"\",\"\",\":\")","v":""}]
[{"$f":"A43+1","v":3107},"II Visonex LUKS TOP Wierzbięcin","UKS-T VICTORIA Chojna","zapewnia gospodarz",null,""]
[{"$f":"A46+1","v":3108},"I KTS Koszalinianin Koszalin","UKS Czarni Pieszcz","zapewnia gospodarz",null,""]
[{"$f":"A47+1","v":3109},"II KTS Koszalinianin Koszalin","KKTS Kołobrzeg","zapewnia gospodarz",null,""]
[{"$f":"A48+1","v":3110}," II UKS Champion Police"," LUKS Gryfice","zapewnia gospodarz",null,""]
[{"$f":"A49+1","v":3111},"Trzynastka Szczecin","LUKS Fala Trzebiatów","zapewnia gospodarz",null,""]
[null,"","",""]
["lp","Zespół - gospodarz","Zespół - przyjezdny","Sędzia meczu","Wynik"]
[null,"05.06.2021 / sobota / 10:00   kolejka 21",null,null,null,{"$f":"IF(E53=\"\",\"\",\":\")","v":""}]
[{"$f":"A50+1","v":3112},"Trzynastka Szczecin"," II UKS Champion Police","zapewnia gospodarz",null,""]
[{"$f":"A54+1","v":3113}," LUKS Gryfice","II KTS Koszalinianin Koszalin","zapewnia gospodarz",null,""]
[3114,"LUKS Fala Trzebiatów","I KTS Koszalinianin Koszalin","zapewnia gospodarz",null,""]
[3115,"UKS Czarni Pieszcz","II KS ATS Stargard","zapewnia gospodarz",null,""]
[3116,"KKTS Kołobrzeg","II Visonex LUKS TOP Wierzbięcin","zapewnia gospodarz",null,""]
[3117,"UKS-T VICTORIA Chojna","MSZS Świdwin","zapewnia gospodarz",null,""]
[null,"","",""]
[null,"14:30   kolejka 22",null,null,null,{"$f":"IF(E61=\"\",\"\",\":\")","v":""}]
[{"$f":"A59+1","v":3118}," LUKS Gryfice","I KTS Koszalinianin Koszalin","zapewnia gospodarz",null,""]
[{"$f":"A62+1","v":3119},"LUKS Fala Trzebiatów","II KTS Koszalinianin Koszalin","zapewnia gospodarz",null,""]
[{"$f":"A63+1","v":3120},"UKS Czarni Pieszcz","II Visonex LUKS TOP Wierzbięcin","zapewnia gospodarz",null,""]
[{"$f":"A64+1","v":3121},"KKTS Kołobrzeg","II KS ATS Stargard","zapewnia gospodarz",null,""]
[{"$f":"A65+1","v":3122},"UKS-T VICTORIA Chojna","UKS TEAM TENIS 2005 Białogard","zapewnia gospodarz",null,""]
[null,"","",""]
["lp","Zespół - gospodarz","Zespół - przyjezdny","Sędzia meczu","Wynik"]
[null,"12.06.2021 / sobota / 10:00   kolejka 23",null,null,null,{"$f":"IF(E69=\"\",\"\",\":\")","v":""}]
[{"$f":"A66+1","v":3123},"UKS TEAM TENIS 2005 Białogard","KKTS Kołobrzeg","zapewnia gospodarz",null,""]
[{"$f":"A70+1","v":3124},"MSZS Świdwin","UKS Czarni Pieszcz","zapewnia gospodarz",null,""]
[3125,"II Visonex LUKS TOP Wierzbięcin","LUKS Fala Trzebiatów","zapewnia gospodarz",null,""]
[3126,"II KS ATS Stargard"," LUKS Gryfice","zapewnia gospodarz",null,""]
[3127,"I KTS Koszalinianin Koszalin","Trzynastka Szczecin","zapewnia gospodarz",null,""]
[3128,"II KTS Koszalinianin Koszalin"," II UKS Champion Police","zapewnia gospodarz",null,""]
[null,"","",""]
[null,"14:30   kolejka 24",null,null,null,{"$f":"IF(E77=\"\",\"\",\":\")","v":""}]
[{"$f":"A75+1","v":3129},"UKS TEAM TENIS 2005 Białogard","UKS Czarni Pieszcz","zapewnia gospodarz",null,""]
[{"$f":"A78+1","v":3130},"MSZS Świdwin","KKTS Kołobrzeg","zapewnia gospodarz",null,""]
[{"$f":"A79+1","v":3131},"II Visonex LUKS TOP Wierzbięcin"," LUKS Gryfice","zapewnia gospodarz",null,""]
[{"$f":"A80+1","v":3132},"II KS ATS Stargard","LUKS Fala Trzebiatów","zapewnia gospodarz",null,""]
[{"$f":"A81+1","v":3133},"I KTS Koszalinianin Koszalin"," II UKS Champion Police","zapewnia gospodarz",null,""]
[{"$f":"A82+1","v":3134},"II KTS Koszalinianin Koszalin","Trzynastka Szczecin","zapewnia gospodarz",null,""]
[null,"","",""]
["lp","Zespół - gospodarz","Zespół - przyjezdny","Sędzia meczu","Wynik"]
[null,"19.06.2021 / sobota / 10:00   kolejka 25",null,null,null,{"$f":"IF(E86=\"\",\"\",\":\")","v":""}]
[{"$f":"A83+1","v":3135},"II KTS Koszalinianin Koszalin","I KTS Koszalinianin Koszalin","zapewnia gospodarz",null,""]
[{"$f":"A87+1","v":3136}," II UKS Champion Police","II KS ATS Stargard","zapewnia gospodarz",null,""]
[3137,"Trzynastka Szczecin","II Visonex LUKS TOP Wierzbięcin","zapewnia gospodarz",null,""]
[3138," LUKS Gryfice","MSZS Świdwin","zapewnia gospodarz",null,""]
[3139,"LUKS Fala Trzebiatów","UKS TEAM TENIS 2005 Białogard","zapewnia gospodarz",null,""]
[3140,"KKTS Kołobrzeg","UKS-T VICTORIA Chojna","zapewnia gospodarz",null,""]
[null,"","",""]
[null,"14:30   kolejka 26",null,null,null,{"$f":"IF(E94=\"\",\"\",\":\")","v":""}]
[{"$f":"A92+1","v":3141}," II UKS Champion Police","II Visonex LUKS TOP Wierzbięcin","zapewnia gospodarz",null,""]
[{"$f":"A95+1","v":3142},"Trzynastka Szczecin","II KS ATS Stargard","zapewnia gospodarz",null,""]
[{"$f":"A96+1","v":3143}," LUKS Gryfice","UKS TEAM TENIS 2005 Białogard","zapewnia gospodarz",null,""]
[{"$f":"A97+1","v":3144},"LUKS Fala Trzebiatów","MSZS Świdwin","zapewnia gospodarz",null,""]
[{"$f":"A98+1","v":3145},"UKS Czarni Pieszcz","UKS-T VICTORIA Chojna","zapewnia gospodarz",null,""]
[null,"","","",null,""]
["lp","Zespół - gospodarz","Zespół - przyjezdny","Sędzia meczu","Wynik"]
[null,"26.06.2021 / sobota/ 10:00  kolejka 27",null,null,null,{"$f":"IF(E102=\"\",\"\",\":\")","v":""}]
[{"$f":"A99+1","v":3146},"KKTS Kołobrzeg","UKS Czarni Pieszcz","zapewnia gospodarz",null,""]
[{"$f":"A103+1","v":3147},"UKS-T VICTORIA Chojna","LUKS Fala Trzebiatów","zapewnia gospodarz",null,""]
[3148,"UKS TEAM TENIS 2005 Białogard","Trzynastka Szczecin","zapewnia gospodarz",null,""]
[3149,"MSZS Świdwin"," II UKS Champion Police","zapewnia gospodarz",null,""]
[3150,"II Visonex LUKS TOP Wierzbięcin","II KTS Koszalinianin Koszalin","zapewnia gospodarz",null,""]
[3151,"II KS ATS Stargard","I KTS Koszalinianin Koszalin","zapewnia gospodarz",null,""]
[null,"","","",null,""]
[null,"14:30   kolejka 28",null,null,null,""]
[{"$f":"A108+1","v":3152},"UKS-T VICTORIA Chojna"," LUKS Gryfice","zapewnia gospodarz",null,""]
[{"$f":"A111+1","v":3153},"UKS TEAM TENIS 2005 Białogard"," II UKS Champion Police","zapewnia gospodarz",null,""]
[{"$f":"A112+1","v":3154},"MSZS Świdwin","Trzynastka Szczecin","zapewnia gospodarz",null,""]
[{"$f":"A113+1","v":3155},"II Visonex LUKS TOP Wierzbięcin","I KTS Koszalinianin Koszalin","zapewnia gospodarz",null,""]
[{"$f":"A114+1","v":3156},"II KS ATS Stargard","II KTS Koszalinianin Koszalin","zapewnia gospodarz",null,""]
[null,"","","",null,""]
[]
[null,"Wyniki podawać SMS zaraz po meczu (30 min) na tel. 502 666 356 w formacie, nr meczu, wynik, np.  3033. 8:2"]
[null,"Protokół wysłać do godz 24:00 tego samego dnia"]
[null,"W 2 rundzie gramy zgodnie z rankingiem"]
[null,"Julian Pawłasek, 19.05.2021"]